bitfinex-derivatives/quotes_SOLF0:USTF0_20260305
["timestamp","ask_amount","ask_price","bid_price","bid_amount"]
[1772672010668,154.046,90.859,90.75,7.73880649]
[1772672010669,9.909,90.799,90.75,7.73880649]
[1772672010868,3.49316803,90.81,90.75,7.73880649]
[1772672011170,3.49316803,90.8,90.75,4.24563846]
[1772672011466,3.49316803,90.77,90.729,0.00017966]
[1772672012265,3.49316803,90.76,90.729,0.00017966]
[1772672012764,9.914,90.757,90.729,0.00017966]
[1772672012965,3.49316803,90.76,90.729,0.00017966]
[1772672013565,9.914,90.751,90.729,0.00017966]
[1772672014166,9.915,90.744,90.729,0.00017966]
[1772672014873,9.914,90.752,90.729,0.00017966]
[1772672015560,3.49316803,90.77,90.729,0.00017966]
[1772672015962,9.913,90.766,90.729,0.00017966]
[1772672016170,3.49316803,90.77,90.729,0.00017966]
[1772672017569,9.915,90.746,90.729,0.00017966]
[1772672017970,3.49316803,90.76,90.729,0.00017966]
[1772672018372,9.915,90.745,90.729,0.00017966]
[1772672018972,3.49316803,90.74,90.729,0.00017966]
[1772672019174,3.49316803,90.73,90.682,4.23547342]
[1772672019473,9.917,90.723,90.67,3.49316803]
[1772672020170,19.827,90.761,90.67,4.23547352]
[1772672020171,9.918,90.716,90.67,4.23547352]
[1772672021368,9.918,90.716,90.67,7.72864155]
[1772672021571,154.159,90.793,90.7,3.49316803]
[1772672021778,3.49316803,90.74,90.691,4.27278705]
[1772672022174,9.917,90.727,90.691,4.27278705]
[1772672022678,3.49316803,90.75,90.691,4.27278705]
[1772672023478,3.49316803,90.73,90.68,3.49316803]
[1772672023676,3.49316803,90.73,90.675,4.27839963]
[1772672024380,9.917,90.724,90.675,4.27839963]
[1772672024678,9.917,90.724,90.681,4.2783997]
[1772672025173,9.916,90.731,90.681,4.2783997]
[1772672026380,3.49316803,90.76,90.701,4.28314439]
[1772672026774,3.49316803,90.76,90.71,3.49316803]
[1772672027079,3.49316803,90.76,90.71,7.7772818]
[1772672027476,9.915,90.745,90.71,4.28411377]
[1772672028778,9.914,90.753,90.71,4.28411377]
[1772672029278,3.49316803,90.76,90.711,4.25101225]
[1772672029481,3.49316803,90.75,90.696,4.25101225]
[1772672030077,9.915,90.741,90.696,4.25101225]
[1772672030378,3.49316803,90.75,90.696,4.25101225]
[1772672031085,9.915,90.743,90.697,14.16196001]
[1772672031481,9.915,90.743,90.698,4.24196001]
[1772672036774,9.914,90.751,90.698,4.24196001]
[1772672037283,9.914,90.751,90.7,4.24026817]
[1772672037481,9.915,90.745,90.7,4.24026817]
[1772672038778,9.914,90.753,90.7,4.24026817]
[1772672039083,7.49420619,90.79,90.7,4.24026817]
[1772672039275,7.49420619,90.79,90.714,4.24337176]
[1772672039876,9.913,90.763,90.717,4.24337184]
[1772672041186,19.821,90.788,90.717,4.24337184]
[1772672041782,9.913,90.767,90.719,4.23919208]
[1772672041978,7.49420619,90.81,90.719,4.23919208]
[1772672042486,7.49420619,90.81,90.741,9.915]
[1772672042487,9.91,90.791,90.741,9.915]
[1772672042684,9.91,90.791,90.742,4.22992626]
[1772672043180,7.49420619,90.81,90.71,7.49420619]
[1772672043181,9.911,90.785,90.744,4.22992626]
[1772672047088,9.911,90.778,90.744,4.22992626]
[1772672047288,7.49420619,90.81,90.744,4.22992626]
[1772672047589,9.91,90.786,90.744,4.22992626]
[1772672056693,3.49365199,90.8,90.746,4.23042432]
[1772672056890,3.49365199,90.8,90.751,4.23042432]
[1772672058987,3.49365199,90.76,90.719,4.25981022]
[1772672059599,3.49365199,90.78,90.731,4.25981027]
[1772672060290,3.49365199,90.78,90.73,3.49365199]
[1772672060291,13.40465199,90.78,90.733,4.25981027]
[1772672060592,9.911,90.78,90.733,4.25981027]
[1772672061186,9.91,90.788,90.743,4.19765092]
[1772672062397,3.49365199,90.77,90.721,4.19765099]
[1772672062589,3.49365199,90.75,90.701,4.20994683]
[1772672062994,3.49365199,90.75,90.622,340.46554782]
[1772672062995,3.49365199,90.74,90.685,4.20994683]
[1772672063196,8.45416914,90.803,90.691,4.20994683]
[1772672063197,3.49365199,90.75,90.691,4.20994683]
[1772672063500,9.914,90.751,90.7,3.49365199]
[1772672063799,9.914,90.751,90.701,4.2099469]
[1772672063986,9.915,90.744,90.701,4.2099469]
[1772672064390,3.49365199,90.75,90.701,4.2099469]
[1772672064589,7.49301692,90.77,90.701,4.2099469]
[1772672065397,9.914,90.752,90.703,4.22046772]
[1772672066600,9.913,90.76,90.703,4.22046772]
[1772672067000,9.913,90.76,90.705,4.19557884]
[1772672067699,7.49301692,90.77,90.705,4.19557884]
[1772672068206,7.49301692,90.77,90.66,27.34201692]
[1772672068207,7.49301692,90.77,90.661,4.19557891]
[1772672069507,9.916,90.737,90.681,4.19791884]
[1772672070216,9.915,90.746,90.684,4.19791891]
[1772672070420,7.49301692,90.79,90.684,4.19791891]
[1772672072613,9.91,90.788,90.684,4.19791891]
[1772672073409,9.912,90.773,90.684,4.19791891]
[1772672076419,9.913,90.761,90.684,4.19791891]
[1772672077422,9.913,90.761,90.686,4.15083907]
[1772672077620,9.914,90.751,90.686,4.15083907]
[1772672077816,7.49301692,90.77,90.686,4.15083907]
[1772672078011,7.49301692,90.75,90.686,4.15083907]
[1772672078412,9.916,90.731,90.686,4.15083907]
[1772672079221,9.915,90.741,90.686,4.15083907]
[1772672080224,9.916,90.734,90.686,4.15083907]
[1772672080527,7.49301692,90.77,90.668,4.15135946]
[1772672080723,7.49301692,90.74,90.668,4.15135946]
[1772672082524,7.49301692,90.74,90.64,7.49301692]
[1772672082525,9.918,90.72,90.67,4.17154654]
[1772672084830,9.917,90.729,90.673,4.16000623]
[1772672085328,7.49301692,90.77,90.673,4.16000623]
[1772672085830,7.49301692,90.77,90.621,45.00732783]
[1772672085831,9.912,90.769,90.681,4.1600063]
[1772672086427,3.49740288,90.74,90.69,3.49740288]
[1772672086627,3.49740288,90.74,90.691,4.16029519]
[1772672086827,3.49740288,90.76,90.701,4.16029519]
[1772672087723,3.49740288,90.77,90.711,4.16029526]
[1772672088030,3.49740288,90.77,90.64,154.418]
[1772672088031,3.49740288,90.78,90.721,4.16029526]
[1772672088528,0.10648169,90.779,90.731,4.14534874]
[1772672088828,3.49740288,90.79,90.731,4.14534874]
[1772672091530,3.61005536,90.79,90.731,4.14534874]
[1772672091731,3.49740288,90.8,90.741,4.15720605]
[1772672092034,0.11264982,90.799,90.741,4.15720605]
[1772672092832,3.49740288,90.83,90.771,4.16052983]
[1772672093034,3.49740288,90.82,90.771,4.16052983]
[1772672096239,9.907,90.818,90.771,4.16052983]
[1772672097443,0.12458232,90.843,90.774,4.15123369]
[1772672097642,0.1245822,90.839,90.76,4.15123375]
[1772672098436,9.907,90.814,90.76,4.15123375]
[1772672099446,9.907,90.814,90.762,4.15676346]
[1772672099638,0.11351808,90.839,90.762,4.15676346]
[1772672101041,0.11351808,90.839,90.772,4.28272868]
[1772672102440,9.905,90.837,90.775,4.2827287]
[1772672103341,9.904,90.849,90.785,4.25800499]
[1772672103638,153.925,90.931,90.785,4.25800499]
[1772672103639,7.48189097,90.88,90.785,4.25800499]
[1772672104948,7.48189097,90.86,90.785,4.25800499]
[1772672105538,9.906,90.83,90.785,4.25800499]
[1772672105943,7.48189097,90.86,90.785,4.25800499]
[1772672106542,9.904,90.848,90.794,4.25847733]
[1772672106743,7.48189097,90.86,90.761,4.26157624]
[1772672107146,7.48189097,90.86,90.784,4.26157624]
[1772672108345,9.905,90.836,90.784,4.26157624]
[1772672108548,7.48189097,90.86,90.784,4.26157624]
[1772672110350,7.48189097,90.84,90.761,4.26162615]
[1772672110951,7.48189097,90.84,90.769,9.912]
[1772672111145,7.48189097,90.84,90.769,4.27853916]
[1772672112344,9.907,90.818,90.769,4.27853916]
[1772672113751,9.907,90.818,90.771,4.27956616]
[1772672114756,9.908,90.81,90.771,4.27956616]
[1772672115356,9.907,90.819,90.771,4.27956616]
[1772672115956,9.905,90.838,90.782,4.20426647]
[1772672116652,3.49016778,90.86,90.801,4.20751053]
[1772672116852,3.49016778,90.88,90.831,4.20751053]
[1772672117056,3.49016778,90.9,90.841,4.20751053]
[1772672117257,3.49016778,90.9,90.851,4.20751053]
[1772672117454,1.91473909,90.937,90.851,4.20751053]
[1772672117455,3.49016778,90.89,90.851,4.20751053]
[1772672118460,9.899,90.893,90.851,4.20751053]
[1772672119255,7.46910498,90.92,90.851,4.20751053]
[1772672119758,7.46910498,90.9,90.821,4.23611197]
[1772672120666,9.896,90.917,90.821,4.23611197]
[1772672120854,7.46910498,90.9,90.821,4.23611197]
[1772672123358,9.898,90.899,90.821,4.23611197]
[1772672123565,7.46910498,90.9,90.821,4.23611197]
[1772672124260,9.899,90.896,90.821,4.23611197]
[1772672126364,9.9,90.887,90.821,4.23611197]
[1772672126556,7.46910498,90.9,90.821,4.23611197]
[1772672127368,9.901,90.877,90.821,4.23611197]
[1772672128070,19.791,90.924,90.758,19.827]
[1772672128071,9.902,90.868,90.781,4.36276589]
[1772672128263,7.46910498,90.88,90.781,4.36276589]
[1772672128863,9.903,90.852,90.801,4.36207455]
[1772672129064,7.46910498,90.88,90.801,4.36207455]
[1772672130566,9.902,90.86,90.803,4.36207455]
[1772672130768,7.46910498,90.88,90.803,4.36207455]
[1772672132464,7.46910498,90.86,90.773,4.3728892]
[1772672132661,162.49158432,90.896,90.773,4.3728892]
[1772672132662,7.46910498,90.84,90.773,4.3728892]
[1772672133566,9.906,90.831,90.776,4.378074]
[1772672133766,7.46910498,90.84,90.776,4.378074]
[1772672134164,9.906,90.824,90.776,4.378074]
[1772672134564,8.5148704,90.874,90.759,4.378074]
[1772672134565,9.908,90.808,90.759,4.378074]
[1772672135071,7.46910498,90.82,90.759,4.378074]
[1772672135564,9.908,90.811,90.761,4.37730469]
[1772672136273,7.46910498,90.82,90.761,4.37730469]
[1772672136274,9.909,90.804,90.761,4.37730469]
[1772672140567,3.49261861,90.8,90.761,4.37730469]
[1772672142463,3.49261861,90.79,90.744,4.37941621]
[1772672143566,3.49261861,90.79,90.747,4.3816499]
[1772672143772,3.49261861,90.79,90.713,19.837]
[1772672143773,2.74074957,90.809,90.751,3.66140362]
[1772672144476,3.49261861,90.82,90.769,3.66140362]
[1772672144768,3.49261861,90.82,90.771,3.66140362]
[1772672145373,9.907,90.819,90.771,3.66140362]
[1772672145771,3.77989948,90.874,90.776,3.56942357]
[1772672146069,3.77989948,90.869,90.765,3.56942357]
[1772672146269,3.49261861,90.87,90.73,154.265]
[1772672146270,9.901,90.87,90.82,3.49261861]
[1772672146469,3.77989948,90.876,90.82,3.49261861]
[1772672146672,3.77989948,90.869,90.811,3.56942357]
[1772672146868,3.49261861,90.88,90.83,3.49261861]
[1772672147073,3.77989948,90.884,90.831,3.60597766]
[1772672147274,3.77989948,90.884,90.84,3.49261861]
[1772672147575,3.77989948,90.884,90.831,3.60597766]
[1772672147776,7.27251809,90.9,90.851,3.60597762]
[1772672148572,3.77989948,90.9,90.851,3.60597762]
[1772672149370,9.898,90.899,90.851,3.60597762]
[1772672149571,3.77458262,90.899,90.814,3.65920939]
[1772672150375,9.9,90.882,90.819,3.65920815]
[1772672150975,3.77458262,90.891,90.823,3.63759285]
[1772672152478,13.67358262,90.889,90.829,3.63759165]
[1772672152678,3.77458262,90.888,90.829,3.63759165]
[1772672153179,3.77458262,90.885,90.829,3.63759165]
[1772672154382,3.77458262,90.885,90.83,9.906]
[1772672155283,3.77458262,90.885,90.83,13.50183028]
[1772672155486,3.77458262,90.885,90.835,13.50083028]
[1772672156380,3.77458262,90.885,90.835,3.59583028]
[1772672157489,9.9,90.884,90.835,3.59583028]
[1772672158880,3.77458262,90.881,90.825,9.906]
[1772672161579,3.77458262,90.877,90.828,3.66604286]
[1772672162179,3.77458262,90.875,90.828,3.66604286]
[1772672162379,3.77458262,90.875,90.81,3.66604178]
[1772672164489,9.902,90.868,90.813,3.65381768]
[1772672165285,3.77458262,90.875,90.82,3.60796306]
[1772672165488,3.77458262,90.899,90.82,3.60796306]
[1772672166388,3.77458262,90.876,90.827,3.60796204]
[1772672166682,3.77458262,90.876,90.8,7.46880843]
[1772672166683,3.77458262,90.876,90.801,3.60796204]
[1772672167488,3.77458262,90.876,90.826,9.906]
[1772672167691,3.77458262,90.89,90.827,3.61799134]
[1772672168491,3.77458262,90.889,90.83,7.10408568]
[1772672168692,3.77458262,90.889,90.831,3.61809646]
[1772672169394,9.9,90.883,90.835,9.905]
[1772672170592,9.9,90.878,90.831,3.61809646]
[1772672170786,13.67458262,90.878,90.831,3.61809646]
[1772672172188,3.77458262,90.873,90.831,3.61809646]
[1772672172392,3.77458262,90.873,90.82,3.48609534]
[1772672172591,3.77458262,90.873,90.82,3.48713273]
[1772672173493,9.901,90.872,90.821,9.907]
[1772672173795,9.901,90.872,90.821,13.49754961]
[1772672174187,9.901,90.872,90.822,3.59054961]
[1772672175694,9.9,90.88,90.831,3.57407507]
[1772672176488,9.9,90.88,90.831,13.47907507]
[1772672177097,13.38713273,90.88,90.831,13.47907507]
[1772672179699,17.06407794,90.88,90.831,13.47907507]
[1772672180199,3.67694521,90.895,90.851,3.5506393]
[1772672182601,3.67694521,90.895,90.852,13.44726968]
[1772672182802,3.67694521,90.909,90.86,3.48713273]
[1772672183399,3.67694521,90.909,90.845,3.49669185]
[1772672183597,1.9148023,90.947,90.762,47.46554782]
[1772672183598,3.67694521,90.889,90.831,3.49669185]
[1772672184501,13.57594521,90.889,90.839,9.905]
[1772672184902,3.67694521,90.888,90.839,9.905]
[1772672186406,3.67694521,90.888,90.842,9.904]
[1772672189712,4.15383574,90.886,90.835,3.80478162]
[1772672191516,4.15383574,90.886,90.838,3.78632372]
[1772672192616,3.48713273,90.88,90.838,3.78632372]
[1772672192817,4.15383574,90.879,90.838,3.78632372]
[1772672193921,4.15383574,90.879,90.832,9.905]
[1772672194416,4.15383574,90.877,90.82,3.48713273]
[1772672194714,4.15383574,90.859,90.811,3.80478162]
[1772672195618,3.48713273,90.88,90.831,3.80478162]
[1772672195820,4.15383574,90.889,90.841,3.80478162]
[1772672197418,4.15383574,90.889,90.851,3.79539519]
[1772672203124,4.15383574,90.879,90.821,3.80478162]
[1772672203320,4.15383574,90.869,90.821,3.80478162]
[1772672207830,4.15383574,90.869,90.811,3.74532445]
[1772672208527,4.15383574,90.869,90.821,3.33578033]
[1772672208830,4.15383574,90.869,90.83,3.48713273]
[1772672209328,4.15383574,90.869,90.83,13.39313273]
[1772672209529,13.87739089,90.88,90.831,3.32940298]
[1772672209730,3.97739089,90.879,90.831,3.32940298]
[1772672212631,3.97739089,90.879,90.841,3.35979342]
[1772672214724,3.97739089,90.879,90.84,3.48713273]
[1772672214725,3.97739089,90.904,90.861,3.41114186]
[1772672220241,3.97739089,90.904,90.863,9.902]
[1772672220732,3.97739089,90.904,90.861,3.41114186]
[1772672220937,3.48713273,90.9,90.85,3.48713273]
[1772672221244,3.97739089,90.879,90.83,3.48713273]
[1772672222537,3.97739089,90.877,90.825,9.906]
[1772672223042,3.97739089,90.874,90.821,3.43054499]
[1772672224437,3.97739089,90.871,90.822,13.31639841]
[1772672224641,3.97739089,90.871,90.823,3.41039841]
[1772672225038,3.97739089,90.871,90.825,13.34951832]
[1772672225541,3.97739089,90.871,90.826,3.44351832]
[1772672226238,3.97739089,90.871,90.83,3.48713273]
[1772672228337,3.97739089,90.871,90.826,3.44351832]
[1772672229239,3.97739089,90.871,90.83,3.48713273]
[1772672230436,3.97739089,90.871,90.826,3.44351832]
[1772672230437,3.97739089,90.883,90.841,3.45958757]
[1772672230638,3.97739089,90.895,90.84,3.48713273]
[1772672231541,9.9,90.881,90.84,3.48713273]
[1772672231745,3.97739089,90.884,90.84,3.48713273]
[1772672233639,3.97739089,90.884,90.84,16.86546261]
[1772672233841,3.97739089,90.884,90.841,3.47432988]
[1772672235547,3.97739089,90.884,90.842,9.904]
[1772672236648,3.97739089,90.884,90.843,3.46668247]
[1772672239344,3.92351442,90.899,90.851,3.46986291]
[1772672239652,3.92351442,90.899,90.861,3.46986291]
[1772672240548,3.92351442,90.889,90.835,3.4698625]
[1772672241154,3.92351442,90.889,90.837,3.45404514]
[1772672241552,3.92351442,90.889,90.84,6.93969547]
[1772672242054,3.92351442,90.889,90.841,3.45404514]
[1772672244550,3.92351442,90.889,90.843,3.48658655]
[1772672245352,3.92351442,90.889,90.845,9.904]
[1772672245553,3.92351442,90.889,90.846,3.48577966]
[1772672248058,9.899,90.893,90.851,3.48571696]
[1772672248362,3.71670847,90.899,90.851,3.48571696]
[1772672249464,3.71670847,90.898,90.851,3.48571696]
[1772672252466,3.71670847,90.898,90.853,9.903]
[1772672253455,3.48565033,90.9,90.853,9.903]
[1772672253456,3.71670847,90.895,90.853,9.903]
[1772672254265,3.48565033,90.89,90.83,3.48565033]
[1772672254468,3.71670847,90.889,90.84,3.48565033]
[1772672254669,3.71670847,90.889,90.841,3.37746892]
[1772672255267,3.71670847,90.889,90.843,3.37746858]
[1772672256768,3.71670847,90.901,90.851,3.45829245]
[1772672258370,3.71670847,90.898,90.851,3.45829245]
[1772672260180,3.71670847,90.896,90.851,3.45829245]
[1772672261470,13.61570847,90.893,90.851,3.45829245]
[1772672262582,3.71670847,90.892,90.851,3.45829245]
[1772672264677,3.71670847,90.889,90.84,3.48565033]
[1772672264876,3.71670847,90.889,90.841,3.48346069]
[1772672267488,3.71670847,90.889,90.843,3.42566204]
[1772672269291,3.95573377,90.916,90.871,3.43039473]
[1772672270590,3.95573377,90.914,90.871,3.43039473]
[1772672271689,3.95573377,90.899,90.84,3.48565033]
[1772672271992,3.95573377,90.889,90.831,3.48298214]
[1772672273491,3.95573377,90.889,90.83,3.48565033]
[1772672273492,3.95573377,90.886,90.84,3.48565033]
[1772672274094,3.95573377,90.886,90.841,3.45037735]
[1772672275393,3.95573377,90.886,90.843,13.25142068]
[1772672275792,9.898,90.905,90.844,3.34742068]
[1772672276094,3.95573377,90.899,90.841,3.34742042]
[1772672276393,3.95573377,90.889,90.841,3.34742042]
[1772672280394,3.95573377,90.886,90.841,3.34742042]
[1772672280789,3.95573377,90.878,90.83,3.48565033]
[1772672280990,3.95573377,90.878,90.831,3.37419896]
[1772672281191,3.48565033,90.89,90.839,3.37419896]
[1772672281386,3.95573377,90.893,90.841,3.37419896]
[1772672281887,3.48565033,90.89,90.841,3.37419896]
[1772672282090,3.95573377,90.889,90.841,3.37419896]
[1772672283493,3.95573377,90.889,90.843,9.904]
[1772672284095,3.95573377,90.889,90.844,3.36528379]
[1772672284402,3.95573377,90.889,90.85,9.903]
[1772672285798,3.95573377,90.889,90.844,3.36528379]
[1772672286698,3.95573377,90.889,90.845,9.904]
[1772672287398,3.95573377,90.889,90.846,3.33314274]
[1772672289897,3.95573377,90.889,90.846,13.23714274]
[1772672290201,3.95573377,90.889,90.846,3.33314274]
[1772672290402,3.95573377,90.878,90.831,13.22908992]
[1772672291301,3.95573377,90.878,90.832,3.3094551]
[1772672291699,3.95573377,90.878,90.834,3.3094551]
[1772672300802,3.63892086,90.869,90.823,9.906]
[1772672301008,3.63892086,90.869,90.81,2.90767042]
[1772672301009,3.63892086,90.859,90.81,2.90767042]
[1772672301508,3.63892086,90.852,90.81,2.90767042]
[1772672303215,3.63892086,90.852,90.813,2.98197317]
[1772672306504,3.63892086,90.852,90.815,3.73544816]
[1772672317029,3.63892086,90.852,90.81,3.48637406]
[1772672317327,3.63892086,90.852,90.806,13.60804419]
[1772672317523,3.63892086,90.852,90.807,3.70004419]
[1772672319626,3.63892086,90.852,90.81,7.1860387]
[1772672320526,3.63892086,90.852,90.81,3.69966464]
[1772672320732,4.12498157,90.846,90.793,3.69966448]
[1772672320934,4.12498157,90.846,90.811,3.69574808]
[1772672323931,4.12498157,90.845,90.785,3.66430843]
[1772672324128,19.8,90.884,90.78,3.48637406]
[1772672324129,4.12498157,90.839,90.78,3.48637406]
[1772672324328,4.12498157,90.809,90.761,9.913]
[1772672325037,4.12498157,90.809,90.762,3.65274008]
[1772672325835,4.12498157,90.809,90.761,9.913]
[1772672334042,3.91658938,90.807,90.76,3.19783833]
[1772672334344,3.91658938,90.799,90.748,3.1978382]
[1772672334545,3.91658938,90.799,90.7,19.84]
[1772672334546,3.91658938,90.789,90.736,3.1978382]
[1772672334846,154.045,90.86,90.7,19.84]
[1772672334847,3.91658938,90.803,90.761,3.19772098]
[1772672335442,3.91658938,90.803,90.77,3.48637406]
[1772672335844,3.48637406,90.83,90.77,3.48637406]
[1772672335845,3.91658938,90.829,90.78,3.48637406]
[1772672336640,3.91658938,90.829,90.79,3.48637406]
[1772672337043,3.91658938,90.829,90.78,6.68409479]
[1772672337243,3.91658938,90.82,90.78,3.48637406]
[1772672337448,3.91658938,90.82,90.772,9.912]
[1772672337648,3.91658938,90.82,90.78,3.48637406]
[1772672338443,3.48637406,90.83,90.78,3.48637406]
[1772672338444,3.91658938,90.818,90.78,3.48637406]
[1772672340845,3.91658938,90.834,90.791,3.1541437]
[1772672341046,3.91658938,90.834,90.8,3.48637406]
[1772672342140,3.91658938,90.834,90.74,19.831]
[1772672342141,3.91658938,90.834,90.78,3.48637406]
[1772672342348,3.91658938,90.829,90.77,3.48637406]
[1772672343645,3.91658938,90.824,90.79,3.48637406]
[1772672344539,3.91658938,90.824,90.781,3.17774064]
[1772672350143,3.91658938,90.824,90.783,13.06115096]
[1772672350344,3.91658938,90.824,90.783,3.15015096]
[1772672351455,3.91658938,90.822,90.783,3.15015096]
[1772672352053,3.91658938,90.819,90.766,9.913]
[1772672352647,3.91658938,90.819,90.771,3.14933018]
[1772672352850,3.91658938,90.819,90.78,3.48637406]
[1772672353954,3.91658938,90.819,90.771,3.14933018]
[1772672354355,3.91658938,90.819,90.774,9.912]
[1772672354555,3.91658938,90.819,90.775,3.14524072]
[1772672355048,3.91658938,90.819,90.777,3.14220422]
[1772672355248,3.91658938,90.819,90.781,3.14220422]
[1772672358755,3.71230706,90.817,90.781,3.14220422]
[1772672365262,3.71230706,90.817,90.771,9.912]
[1772672365964,3.71230706,90.817,90.771,13.17720968]
[1772672366165,3.71230706,90.817,90.772,3.26520959]
[1772672373465,4.19538215,90.815,90.772,3.26520959]
[1772672375175,4.19538215,90.813,90.761,3.73035137]
[1772672376583,4.19538215,90.81,90.761,3.73035137]
[1772672377382,4.19538215,90.808,90.761,3.73035137]
[1772672378682,4.19538215,90.799,90.75,3.72498495]
[1772672378877,4.19538215,90.799,90.74,7.24700408]
[1772672379083,4.19538215,90.789,90.741,3.75637594]
[1772672380178,4.19538215,90.788,90.741,3.75637594]
[1772672385475,4.19538215,90.788,90.743,3.76471572]
[1772672387175,4.19538215,90.788,90.733,13.68226773]
[1772672387375,4.19538215,90.788,90.734,3.76626773]
[1772672388186,4.19538215,90.799,90.751,3.76626766]
[1772672389587,4.19538215,90.799,90.75,3.49062814]
[1772672389588,4.19538215,90.799,90.753,3.36445607]
[1772672397198,4.19538215,90.799,90.707,34.1414473]
[1772672397199,3.49062814,90.76,90.704,11.31978812]
[1772672397395,8.49646587,90.808,90.711,11.31978812]
[1772672397597,3.49062814,90.76,90.713,11.31978812]
[1772672399096,9.914,90.758,90.713,11.31978812]
[1772672400295,3.49551798,90.77,90.721,11.22017689]
[1772672400488,3.49551798,90.77,90.72,3.49551798]
[1772672400489,3.49551798,90.78,90.731,11.22017689]
[1772672400690,3.49551798,90.79,90.731,11.22017689]
[1772672401296,9.91,90.788,90.733,11.22948881]
[1772672402395,154.104,90.825,90.72,3.49551798]
[1772672402595,154.104,90.825,90.68,1.91755082]
[1772672402596,3.49551798,90.75,90.706,11.22948881]
[1772672402800,3.49551798,90.74,90.691,11.19921593]
[1772672402996,3.49551798,90.72,90.678,11.19921593]
[1772672403196,3.49551798,90.72,90.668,9.923]
[1772672403197,3.49551798,90.75,90.691,11.19921593]
[1772672403496,3.49551798,90.75,90.701,11.19921593]
[1772672404300,3.49551798,90.76,90.71,3.49551798]
[1772672404498,3.49551798,90.76,90.71,14.69473399]
[1772672404698,3.49551798,90.76,90.71,11.19921601]
[1772672405096,9.913,90.759,90.71,11.19921601]
[1772672406304,3.49551798,90.78,90.721,11.23408234]
[1772672406903,3.49551798,90.79,90.731,11.25981279]
[1772672407200,3.49551798,90.78,90.731,11.25981279]
[1772672407401,154.08,90.839,90.731,11.25981279]
[1772672407402,3.49551798,90.77,90.731,11.25981279]
[1772672407701,3.49551798,90.78,90.731,11.25981279]
[1772672408103,9.911,90.779,90.731,11.25981279]
[1772672409003,9.912,90.771,90.731,11.25981279]
[1772672409896,13.40651798,90.78,90.731,11.25981279]
[1772672411001,8.58164151,90.828,90.694,11.26051527]
[1772672411002,3.49551798,90.74,90.694,11.26051527]
[1772672411197,154.147,90.8,90.671,11.26051527]
[1772672411198,3.49551798,90.72,90.671,11.26051527]
[1772672411402,3.49551798,90.73,90.68,3.49551798]
[1772672411601,9.917,90.729,90.671,11.26051527]
[1772672412001,9.919,90.712,90.671,11.26051527]
[1772672412402,3.49551798,90.7,90.651,11.26051527]
[1772672413305,13.41551798,90.7,90.651,11.26051527]
[1772672414002,3.49551798,90.7,90.651,11.26051527]
[1772672415407,9.92,90.698,90.651,11.26051527]
[1772672416506,3.49551798,90.69,90.631,11.49224256]
[1772672416906,3.49551798,90.68,90.631,11.49224256]
[1772672417105,3.49551798,90.67,90.631,11.49224256]
[1772672417708,3.49551798,90.68,90.631,11.49224256]
[1772672418610,19.834,90.73,90.6,1.91926406]
[1772672418611,3.50186849,90.69,90.641,11.48166326]
[1772672418903,9.921,90.691,90.641,11.48166326]
[1772672419098,19.834,90.73,90.641,11.48166326]
[1772672419099,9.921,90.687,90.641,11.48166326]
[1772672419299,3.50186849,90.68,90.641,11.48166326]
[1772672419501,3.50186849,90.67,90.621,11.44567376]
[1772672420605,3.50186849,90.66,90.605,11.44567376]
[1772672420805,3.50186849,90.67,90.611,11.41676495]
[1772672421106,154.225,90.754,90.55,154.571]
[1772672421107,3.50186849,90.69,90.631,11.41676495]
[1772672421308,3.50186849,90.7,90.641,11.41676495]
[1772672421804,8.78452229,90.753,90.641,11.41676495]
[1772672421805,9.921,90.689,90.641,11.41676495]
[1772672422309,3.50186849,90.69,90.642,11.41676495]
[1772672422508,9.92,90.698,90.642,11.41676495]
[1772672422910,3.50186849,90.71,90.651,11.40047772]
[1772672423110,19.833,90.734,90.637,11.40047772]
[1772672423111,3.50186849,90.69,90.637,11.40047772]
[1772672423410,154.223,90.755,90.637,11.40047772]
[1772672423411,3.50186849,90.68,90.637,11.40047772]
[1772672425410,9.922,90.679,90.637,11.40047772]
[1772672427007,3.50186849,90.68,90.637,11.40047772]
[1772672427211,3.50186849,90.71,90.651,11.35386326]
[1772672427816,3.50186849,90.71,90.655,11.35259468]
[1772672428511,3.50186849,90.71,90.656,11.35259468]
[1772672429017,3.50186849,90.7,90.656,11.35259468]
[1772672429221,164.36799222,90.783,90.6,19.862]
[1772672429222,3.50186849,90.69,90.642,11.33115779]
[1772672429413,3.50186849,90.68,90.642,11.33115779]
[1772672429617,9.922,90.678,90.642,11.33115779]
[1772672430816,3.50186849,90.68,90.642,11.33115779]
[1772672431016,9.921,90.687,90.642,11.33115779]